Cogmind - Beta 12 X4 @@@ ROGUE MODE // 2023.01.16 @ 22:04:24 Player: Decinym Result: Destroyed by D-53 Grenadier with Mini Grenade Launcher Performance ------------- Evolutions (0) 0 Regions Visited (2) 400 Robots Destroyed (16) 80 Value Destroyed (431) 431 Prototype IDs (0) 0 Alien Tech Used (0) 0 Bonus (21) 21 TOTAL SCORE: 932 Bonus ------- Follower Combat Kills 21 Cogmind --------- Core Integrity 0/250 Matter 248/300 Energy 261/265 System Corruption 2% Temperature Cool (2) Movement Walking (190) Ox1 Location -10/Mines Parts ------- > --- POWER (1) -------- Reinforced Ion Engine > --- PROPULSION (2) --- Aluminum Leg Aluminum Leg > --- UTILITY (2) ------ Medium Storage Unit > --- WEAPON (2) ------- Assault Rifle Assault Rifle > --- INVENTORY (10) --- Reinforced Ion Engine Light Treads Light Treads Light Treads Aluminum Leg Medium Armor Plating Medium Armor Plating Medium Armor Plating Assault Rifle Peak State ------------ > --- POWER ------------ Reinforced Ion Engine > --- PROPULSION ------- Aluminum Leg Aluminum Leg > --- UTILITY ---------- Improved Heat Sink Small Storage Unit > --- WEAPON ----------- Assault Rifle Assault Rifle > --- INVENTORY -------- Reinforced Ion Engine Light Treads Light Treads Medium Armor Plating Medium Armor Plating Assault Rifle Assault Rifle [Rating: 11] Favorites ----------- Power Reinforced Ion Engine Engine Reinforced Ion Engine Propulsion Aluminum Leg Treads Light Treads Leg Aluminum Leg Utility Small Storage Unit Device Improved Heat Sink Storage Small Storage Unit Protection Medium Armor Plating Weapon Assault Rifle Ballistic Gun Assault Rifle Build | -11 -10 -10 ------- Run | Scr Mat Min Slots Evolved . | . . . Power . | . . . Propulsion . | . . . Utility . | . . . Weapon . | . . . Parts Attached 21 | . 17 4 Power 2 | . 2 . Engine 2 | . 2 . Core . | . . . Reactor . | . . . Propulsion 9 | . 7 2 Treads 2 | . 2 . Leg 7 | . 5 2 Wheel . | . . . Hover . | . . . Flight . | . . . Utility 4 | . 4 . Device 2 | . 2 . Storage 1 | . 1 . Processor . | . . . Hackware . | . . . Protection 1 | . 1 . Artifact . | . . . Weapon 6 | . 4 2 Energy Gun . | . . . Energy Cannon . | . . . Ballistic Gun 6 | . 4 2 Ballistic Cannon . | . . . Launcher . | . . . Special Weapon . | . . . Impact Weapon . | . . . Slashing Weapon . | . . . Piercing Weapon . | . . . Special Melee Weapon . | . . . Unidentified Prototypes . | . . . Parts Lost 2 | . . 2 Power . | . . . Propulsion . | . . . Utility 1 | . . 1 Weapon 1 | . . 1 Highest Loss Streak 1 | . . 1 To Critical Strikes . | . . . Average Slot Usage (%) 97 | . 96 100 Engine 14 | . 14 14 Treads 3 | . 2 3 Leg 24 | . 25 24 Device 3 | . 6 . Storage 14 | . 14 14 Protection 8 | . 4 14 Ballistic Gun 27 | . 27 28 Naked Turns . | . . . Heaviest Build 31 | 10 31 31 Greatest Support 40 | 20 40 40 Greatest Overweight (x) 4 | . 4 3 Average Overweight (x) . | . . . Largest Inventory Capacity 10 | . 10 10 Average Capacity 8 | . 8 10 Most Carried 9 | . 8 9 Average Carried 7 | . 7 8 Final Capacity 10 | 8 10 10 Final Carried 9 | 6 7 9 Class Distribution -------------------- 100% | Mutant Dominant Class ---------------- Mutant | -10/Materials Mutant | -10/Mines Resources | -11 -10 -10 ----------- Run | Scr Mat Min Matter Collected 573 | 200 172 201 Remotely . | . . . Salvage Created 532 | . 328 204 Parts 33 | . 21 12 Haulers Intercepted 1 | . 1 . Recyclers Shooed . | . . . Parts Field Recycled . | . . . Retrieved Matter . | . . . Parts Self-Destructed . | . . . Prevented . | . . . Kills | -11 -10 -10 ------- Run | Scr Mat Min Combat Hostiles Destroyed 15 | . 8 7 Guns 15 | . 8 7 Classes Destroyed 3 | . 3 . Hauler 1 | . 1 . Swarmer 5 | . 2 3 Grunt 10 | . 6 4 Best Kill Streak 4 | . 2 4 Combat Bots Only 4 | . 2 4 Max Kills in Single Turn 1 | . 1 1 Gunslinging . | . . . Exploded . | . . . Melee . | . . . Uniques/NPCs Destroyed . | . . . Combat | -11 -10 -10 -------- Run | Scr Mat Min Damage Taken 1056 | . 324 732 Core 263 | . 82 181 Absorbed by Shields . | . . . Core Remaining (%) 100 | 100 . . Volleys Fired 48 | . 28 20 Largest 2 | . 2 2 Hottest 40 | . 40 40 Shots Fired 96 | . 56 40 Gun 96 | . 56 40 Cannon . | . . . Launcher . | . . . Special . | . . . Kinetic 96 | . 56 40 Thermal . | . . . Explosive . | . . . Electromagnetic . | . . . Robot Hit Streak 15 | . 9 15 Robot Miss Streak 6 | . 6 2 Penetration Max . | . . . Secondary Targets 4 | . 1 3 Max Gunslinging Chain 1 | . 1 1 Shots Hit Robots 62 | . 34 28 Core Hits 32 | . 20 12 Critical Kills . | . . . Critical Parts Destroyed 1 | . 1 . Critical Strikes 1 | . 1 . Destroy 1 | . 1 . Melee Attacks . | . . . Impact . | . . . Slashing . | . . . Piercing . | . . . Sneak Attacks . | . . . Combat Hostiles . | . . . Follow-up Attacks . | . . . Damage Inflicted 806 | . 453 353 Guns 787 | . 434 353 Cannons . | . . . Explosions . | . . . Melee . | . . . Ramming 19 | . 19 . Kinetic 787 | . 434 353 Thermal . | . . . Explosive . | . . . Electromagnetic . | . . . Impact . | . . . Slashing . | . . . Piercing . | . . . Highest Corruption 2 | . 2 2 Average Corruption 2 | . 2 2 Corruption Purged . | . . . Corruption Blocked . | . . . Effects 10 | . 6 4 Message Errors 3 | . 1 2 Matter Fused 1 | . 1 . Heat Flow Errors 1 | . . 1 Energy Discharges 2 | . 2 . Data Loss (major) 1 | . . 1 Misfires 1 | . 1 . Weapon Failures 1 | . 1 . Overload Shots . | . . . Overflow Damage . | . . . Projectiles . | . . . Explosions . | . . . Melee . | . . . Knockbacks . | . . . Impact . | . . . Kinetic . | . . . Secondary . | . . . Self-Inflicted Damage . | . . . Shots . | . . . Rammed 2 | . 2 . Targets Rammed 8 | . 8 . Kicked 6 | . 6 . Crushed . | . . . Highest Temperature 309 | . 10 309 Average Temperature 140 | . 7 149 Received Heat Transfer 389 | . 165 224 Effects 1 | . . 1 Interference 1 | . . 1 Siege Activations . | . . . Robots Corrupted . | . . . Combat Hostiles . | . . . Parts Fried . | . . . Impact Corruptions . | . . . Robots Melted . | . . . Combat Hostiles . | . . . Parts Melted . | . . . Heat Transferred . | . . . Parts Sabotaged . | . . . Parts Stolen . | . . . Parts Stripped . | . . . Power Chain Reactions . | . . . Missiles Intercepted . | . . . Alert | -11 -10 -10 ------- Run | Scr Mat Min Peak Influence 281 | . 185 281 Initial 25 | . . 25 Average 108 | . 74 169 Maximum Alert Level 1 | . . 1 Low Security (%) 81 | . 100 46 Level 1 18 | . . 53 Level 2 . | . . . Level 3 . | . . . Level 4 . | . . . Level 5 . | . . . High Security . | . . . Max Security . | . . . Squads Dispatched 2 | . 2 . Investigation . | . . . Extermination . | . . . Reinforcement 2 | . 2 . Assault . | . . . Garrison . | . . . Intercept . | . . . Searches Triggered . | . . . Construction Impeded . | . . . Haulers Reinforced . | . . . Active Scanning Responses . | . . . Cargo Convoy Interrupts . | . . . Stealth | -11 -10 -10 --------- Run | Scr Mat Min Distress Signals 3 | . 3 . Communications Jammed . | . . . Distress Signals . | . . . Times Spotted 33 | . 18 15 Peak Tracking Total 9 | . 4 9 Tactical Retreats . | . . . Traps | -11 -10 -10 ------- Run | Scr Mat Min Traps Triggered 3 | . 3 . Indirectly . | . . . Trap Hack Attempts . | . . . Triggered . | . . . Disarmed . | . . . Reprogrammed . | . . . Reused . | . . . Traps Extracted . | . . . Installed . | . . . Triggered . | . . . Machines | -11 -10 -10 ---------- Run | Scr Mat Min Machines Disabled . | . . . Max in Single Turn . | . . . Machines Sabotaged . | . . . Overloaded Fab Kills . | . . . Hacking | -11 -10 -10 --------- Run | Scr Mat Min Machines Accessed . | . . . Terminals . | . . . Fabricators . | . . . Repair Stations . | . . . Recycling Units . | . . . Scanalyzers . | . . . Garrison Access . | . . . Total Hacks . | . . . Successful . | . . . Failed . | . . . Catastrophic . | . . . Database Lockouts . | . . . Manual . | . . . Terminals . | . . . Fabricators . | . . . Repair Stations . | . . . Recycling Units . | . . . Scanalyzers . | . . . Garrison Access . | . . . Terminal Hacks . | . . . Fabricator Hacks . | . . . Repair Station Hacks . | . . . Recycling Unit Hacks . | . . . Scanalyzer . | . . . Garrison Access Hacks . | . . . Unauthorized Hacks . | . . . Terminals . | . . . Fabricators . | . . . Repair Stations . | . . . Recycling Units . | . . . Scanalyzers . | . . . Garrison Access . | . . . Data Cores Recovered . | . . . Used . | . . . Hacking Detections . | . . . Full Trace Events . | . . . Feedback Events . | . . . Feedback Blocked . | . . . Robot Schematics Acquired . | . . . Robots Built . | . . . Authchips . | . . . Time . | . . . Total Robot Build Rating . | . . . Part Schematics Acquired . | . . . Parts Built . | . . . Authchips . | . . . Time . | . . . Total Part Build Rating . | . . . Parts Repaired . | . . . Time . | . . . Parts Recycled . | . . . Recycled Matter . | . . . Retrieved Matter . | . . . Retrieved Components . | . . . Parts Scanalyzed . | . . . Part Schematics Acquired . | . . . Parts Damaged . | . . . Bothacking | -11 -10 -10 ------------ Run | Scr Mat Min Used RIF Installer . | . . . Robots Hacked . | . . . Non-combat . | . . . Combat . | . . . Robot Hacks Applied . | . . . Relay Couplers Released . | . . . Fabnet Peak Effective % . | . . . Robots Rewired . | . . . Allies Hacked . | . . . Hacks Repelled . | . . . Allies | -11 -10 -10 -------- Run | Scr Mat Min Total Allies 3 | . . 3 Largest Group 3 | . . 3 Highest-Rated Group 40 | . . 40 Highest-Rated Ally 16 | . . 16 Total Orders . | . . . Ally Attacks 10 | . . 10 Total Damage 93 | . . 93 Kills 3 | . . 3 Allies Corrupted . | . . . Allies Melted . | . . . Intel | -11 -10 -10 ------- Run | Scr Mat Min Robot Analysis Total . | . . . Derelict Logs Recovered . | . . . Drone Launches . | . . . Drone Recoveries . | . . . Exploration | -11 -10 -10 ------------- Run | Scr Mat Min Turns Passed 1122 | . 723 399 Spaces Moved 591 | 1 414 176 Core 1 | . 1 . Treads 50 | . 39 11 Legs 540 | 1 374 165 Wheels . | . . . Hover . | . . . Flight . | . . . Fastest Speed 120 | 120 120 160 Average Speed 154 | 120 139 188 Slowest Speed 330 | 120 250 330 Overloaded Moves . | . . . Propulsion Burnouts . | . . . Robots Hopped . | . . . Cave-ins Triggered . | . . . Exploration Rate (%) 41 | 2 74 47 Regions Visited 2 Branch Regions 1 Pre-discovered Areas . | . . . Known Exits Taken . | . . . Unknown Exits Taken 2 | 1 1 . Scrap Searched . | . . . Spaces Dug . | . . . Terrain Destroyed . | . . . Melee . | . . . Projectile . | . . . AOE . | . . . Terrain Rammed . | . . . Walls Destroyed . | . . . Machines Disabled . | . . . Actions | -11 -10 -10 --------- Run | Scr Mat Min Total 714 | . 511 203 Wait 17 | . 17 . Move 589 | . 413 176 Hop . | . . . Pick Up 11 | . 10 1 Fast Attach 10 | . 8 2 Attach 3 | . 2 1 Detach 2 | . . 2 Swap 8 | . 7 1 Drop 18 | . 18 . Fire 48 | . 28 20 Melee . | . . . Ram . | . . . Kick 6 | . 6 . Crush 2 | . 2 . Escape Stasis . | . . . Rewire . | . . . Trap . | . . . Miscellaneous . | . . . Route ------- -11/Scrapyard -10/Materials (discovered 3 exits: [*Mat x2] / [*Min]) -10/Mines (discovered 1 exit: [*Mat]) History --------- Turn | Location | Event 1 | -11/Scrapyard | Discovered new exit (range 0) 1 | -11/Scrapyard | Entered Materials 182 | -10/Materials | Discovered new exit (range 5) 306 | -10/Materials | Build established: Mutant 452 | -10/Materials | Discovered new exit (range 5) 710 | -10/Materials | Discovered new exit (range 9) 724 | -10/Materials | Entered Mines 889 | -10/Mines | Core integrity fell below 50% 960 | -10/Mines | Assisted by bots powering up and referring to "LRC-V3" 1042 | -10/Mines | Discovered new exit (range 11) 1111 | -10/Mines | Assembled infested the area 1118 | -10/Mines | Core integrity fell below 20% 1123 | -10/Mines | Destroyed by D-53 Grenadier with Mini Grenade Launcher Last Messages --------------- 01092_ K-01 Serf collects debris. 01095_ Acquired 9 matter. 01098_ 60&CH |G1CSR2 QFF:JMUR FR=QK 01117_ as-63602 destroyed. 01117_ Trooper 1a destroyed. 01117_ R-06 Scavenger destroyed. 01117_ T-07 Excavator destroyed. 01119_ Mercenary 1a destroyed. 01119_ as-61234 destroyed. 01120_ K-01 Serf collects debris. 01120_ Med. Armor Plating destroyed. 01120_ as-07052 destroyed. 01121_ Trooper 1b destroyed. 01121_ D-53 Grenadier destroyed. 01121_ as-23306 destroyed. 01122_ K-01 Serf collects debris. Map ----- +----------------------------------------------------+ | ?????????????????????????????????????????????????? | | ?????????????????????????????????????????????????? | | ?????????????????????????????????????????????????? | | ?????????????????????????????????????????????????? | | ?????????????????????????????????????????????????? | | ?????????????????????????????????????????????????? | | ?????????????????????????????????????????????????? | | ?????????????????????????????????????????????????? | | ?????????????????????????????????????????????????? | | ?????????????????????????????????????????????????? | | ?????????????????????????????????????????????????? | | ?????????????????????????????????????????????????? | | ?????????????????????????????????????????????????? | | ?????????????????????????????????????????????????? | | ??????????????????????????????????? ????????????? | | ?????????????????????????????????? ????????????? | | ????????????????????????????????? #????????????? | | ???????????????????????????????? #????????????? | | ??????????????????????????????? #????????????? | | ???????????????????#?????????? #?????????????? | | ???????????????????# ???????? #?????????????? | | ???????????????????# #####??# #?????????????? | | ?????????????????### # ### #??????????????? | | ?????????????????# # #??????????????? | | ?????????????????# ###????????????? | | ????????#$######## = @ #??????????? | | ????????# $t == #??????????? | | ????????# a% *| #### #?????????? | | ??????????####### %= =k ##????????????????? | | ????????????????## =*! ### ##?????????????????? | | ?????????????????## % #?? #??????????????????? | | ??????????????????## #### #??????????????????? | | ??????###??????????### #??????????????????? | | ?????## ???????????#kd#######??????????????????? | | ?????# ???????????# #????????????????????????? | | ?????# ??######### %### #?????????????????? | | ?????# ??# * r[ #?????????????????? | | ??????# ?# ###=###= ### < #?????????????????? | | ??????# ## #?# ### #????????????????????????? | | ???????# + #?# ## #????????????????????????? | | #####??## ### ### #????????????????????????? | | #???#????# ## #????????????????????????? | | %########## ## #????????????????????????? | | " *= ### #############????????????? | | " ##### ######?### ?????????? | | " #??????????????## ?????????? | | #???????????????# ##########?????????????? | | # ##?????????##????# #??????????????????????? | | # #?????????? #????# #??????????????????????? | | # #?????????? #????# #??????????????????????? | +----------------------------------------------------+ Best States ------------- Heat Dissipation 39 Energy Generation 12 Energy Capacity 265 Matter Stores 300 Matter Capacity 300 Sight Range 16 Terrain Scan Density 10 Armor Coverage 225 Evasion (%) 55 Recoil Reduction 2 Item Schematics ----------------- None Robot Schematics ------------------ None Fabricated ------------ Nothing Alien Tech Used ----------------- None Achievements -------------- None Challenges ------------ None Game ------ Seed FactoryNetworkBeamcaster Manual? 0 Play Time 00:06:59 Cumulative 437.1 hours Start 2023.01.16 @ 14:52:58 End 2023.01.16 @ 22:04:24 Sessions 3 Manual Loads 0 Difficulty Rogue Special Mode None Game No. 431 Rogue 431 Adventurer 0 Explorer 0 Win Type - Total 32 Types 18/3/4/1/2/1/3/0/0 Lore% 92 Gallery% 94 Achievement% 82 Wizard Run 0 Options --------- ASCII 0 Keyboard 0 Movement Arrows Keybinds 0 Fullscreen 2 Font 24/Smallcaps Map View 76x50 Tactical HUD 1 Map Filters NONE Filters NONE Steam 1 RUN: bb2cf9fd-2efd-430b-bd76-60ed0b3a779c